Cogmind - Beta 15 @@@ ROGUE MODE // 2025.06.04 @ 17:03:33 Player: CrossedViper Result: Destroyed by P-70 Sage with Tesla Rifle Performance ------------- Evolutions (4) 2000 Regions Visited (6) 1200 Robots Destroyed (97) 485 Value Destroyed (2906) 2906 Prototype IDs (21) 420 Alien Tech Used (0) 0 Bonus (40) 40 TOTAL SCORE: 7051 Bonus ------- High Alert Combat Kills 70 Friendly Fire -30 Cogmind --------- Core Integrity 0/850 Matter 219/300 Energy 213/213 System Corruption 17% Temperature Cool (0) Movement Flying (119) Ox1 Location -6/Factory Parts ------- > --- POWER (1) -------- Fission-Ion Core > --- PROPULSION (7) --- FC-Compact Exoskeleton Biomechanical Wings Biomechanical Wings Biomechanical Wings > --- UTILITY (4) ------ Armored Scrap Engine Hacking Suite > --- WEAPON (3) ------- Precision Grenade Launcher Hvy. Charged Proton Construct/C > --- INVENTORY (5) ---- Biomechanical Wings Makeshift Microdissipator Network Large Storage Unit Multitool Peak State ------------ > --- POWER ------------ Fission-Ion Core > --- PROPULSION ------- FC-Compact Exoskeleton Biomechanical Wings Biomechanical Wings Biomechanical Wings Biomechanical Wings Biomechanical Wings > --- UTILITY ---------- Scrap Engine Advanced Heat Sink > --- WEAPON ----------- Precision Grenade Launcher Hvy. Charged Proton Construct/C > --- INVENTORY -------- Gravmag System Biomechanical Wings Makeshift Microdissipator Network Large Storage Unit Multitool [Rating: 79] Favorites ----------- Power Subdweller Power Source Engine Subdweller Power Source Power Core Light Nuclear Core Propulsion Spiked Treads Treads Spiked Treads Leg Constructs Wheel Armored Wheel Flight Unit Biomechanical Wings Utility Large Storage Unit Device Armored Scrap Engine Storage Large Storage Unit Hackware Hacking Suite Protection Scrap Shield Weapon Subdweller Machine Gun Energy Gun Subdweller Laser Energy Cannon Subdweller Beam Cannon Ballistic Gun Subdweller Machine Gun Ballistic Cannon Constructs Launcher Precision Grenade Launcher Slashing Weapon Power Sword Build | -11 -10 -10 -8 -6 -6 -6 ------- Run | Yrd Mat Sub Rec Fac Was Fac Slots Evolved 8 | . . . . 8 . . Power . | . . . . . . . Propulsion 5 | . . . . 5 . . Utility 2 | . . . . 2 . . Weapon 1 | . . . . 1 . . Parts Attached 61 | 7 12 21 3 8 . 10 Power 4 | 1 1 2 . . . . Engine 3 | 1 . 2 . . . . Core 1 | . 1 . . . . . Reactor . | . . . . . . . Propulsion 15 | 2 4 4 . . . 5 Treads 5 | 2 . 3 . . . . Leg 2 | . 2 . . . . . Wheel 3 | . 2 1 . . . . Hover . | . . . . . . . Flight 5 | . . . . . . 5 Utility 20 | 2 3 7 2 3 . 3 Device 11 | 1 1 4 1 2 . 2 Storage 2 | 1 1 . . . . . Processor . | . . . . . . . Hackware 3 | . 1 . 1 . . 1 Protection 4 | . . 3 . 1 . . Artifact . | . . . . . . . Weapon 22 | 2 4 8 1 5 . 2 Energy Gun 8 | 2 2 2 1 1 . . Energy Cannon 3 | . . 1 . 1 . 1 Ballistic Gun 6 | . 1 4 . 1 . . Ballistic Cannon 1 | . . . . . . 1 Launcher 2 | . . 1 . 1 . . Special Weapon . | . . . . . . . Impact Weapon . | . . . . . . . Slashing Weapon 2 | . 1 . . 1 . . Piercing Weapon . | . . . . . . . Special Melee Weapon . | . . . . . . . Unidentified Prototypes 5 | . . . 1 2 . 2 Parts Lost 24 | . 4 3 1 9 . 7 Power 5 | . 1 . . 2 . 2 Propulsion 5 | . . 1 1 1 . 2 Utility 5 | . 1 1 . 1 . 2 Weapon 9 | . 2 1 . 5 . 1 Highest Loss Streak 4 | . 1 3 1 4 . 3 To Critical Strikes . | . . . . . . . Average Backups 6 | 2 7 6 6 4 5 4 Power . | . . . . . . . Propulsion 1 | 1 2 2 . . . . Utility 2 | . 1 1 3 2 2 2 Weapon 1 | . 2 2 1 . 2 1 Tool/Special . | . . . . . . . Unused Backups 10 | . . 3 2 1 . 4 Power 1 | . . . . 1 . . Propulsion 3 | . . . 1 . . 2 Utility 3 | . . 1 1 . . 1 Weapon 2 | . . 2 . . . . Tool/Special 1 | . . . . . . 1 Average Slot Usage (%) 76 | . 92 89 75 32 15 43 Engine 8 | . 1 12 13 1 . 2 Core 3 | . 11 1 . 2 . 2 Treads 13 | . 11 19 13 . . . Leg 2 | . 10 . 5 2 . . Wheel 5 | . 5 8 1 . . 2 Flight 2 | . . . . 2 6 14 Device 5 | . 1 4 8 9 6 7 Storage 4 | . 14 4 4 . . . Hackware 1 | . 5 . 2 . . 2 Protection 4 | . . 8 2 2 . . Energy Gun 10 | . 23 11 8 3 . . Energy Cannon 2 | . . . 13 1 . 3 Ballistic Gun 8 | . . 16 . . 2 . Peak Build Rating 79 | 7 14 15 33 64 33 79 Average Rating 22 | 5 9 13 22 45 30 54 On Entrance 18 | . 7 14 15 33 29 33 Naked Turns . | . . . . . . . Heaviest Build 39 | 11 29 39 39 21 5 26 Greatest Support 40 | 40 40 40 40 27 10 36 Greatest Overweight (x) 4 | . 1 1 1 1 1 4 Average Overweight (x) . | . . . . . . . Largest Inventory Capacity 15 | 8 15 15 15 5 5 5 Average Capacity 8 | 7 14 8 8 5 5 5 Most Carried 15 | 5 11 15 15 5 5 5 Average Carried 6 | 2 7 7 7 4 5 4 Final Capacity 15 | 8 15 15 5 5 5 5 Final Carried 15 | 3 11 15 5 5 5 4 Scrap Engine Consumption 82 | . . . 17 27 1 37 Constructs Created 12 | . . . 3 2 1 6 Constructs Modified 21 | . . . 2 10 . 9 Class Distribution -------------------- 48% | Mutant 31% | Subdweller-Mutant 14% | Construct 5% | Scavenger-Mutant Dominant Class ---------------- Mutant | -10/Materials Subdweller-Mutant | -10/Subcaves Construct | -8/Recycling Mutant | -6/Factory Mutant | -6/Waste Construct | -6/Factory Resources | -11 -10 -10 -8 -6 -6 -6 ----------- Run | Yrd Mat Sub Rec Fac Was Fac Matter Collected 2187 | 270 149 556 148 396 . 668 Remotely . | . . . . . . . Salvage Created 3944 | 199 477 587 427 1107 . 1147 Parts 199 | 21 28 35 18 50 . 47 Haulers Intercepted 6 | . 2 . . 1 . 3 Recyclers Shooed 10 | 1 . . 6 2 . 1 Parts Field Recycled . | . . . . . . . Retrieved Matter . | . . . . . . . Parts Self-Destructed 23 | . . 23 . . . . Prevented . | . . . . . . . Kills | -11 -10 -10 -8 -6 -6 -6 ------- Run | Yrd Mat Sub Rec Fac Was Fac Combat Hostiles Destroyed 58 | . 8 14 6 14 . 16 Melee 2 | . 1 . . 1 . . Guns 23 | . 7 11 2 3 . . Cannons 14 | . . . 3 2 . 9 AOE 16 | . . 3 . 8 . 5 Classes Destroyed 17 | 3 5 4 1 3 . 1 Worker 6 | 2 1 . . 2 . 1 Builder 6 | . . . . 2 . 4 Tunneler 6 | 4 1 . . . . 1 Hauler 6 | . 2 . . 1 . 3 Recycler 7 | 1 . . 1 4 . 1 Operator 4 | . 1 . . 2 . 1 Turret 1 | . . 1 . . . . Watcher 3 | . 3 . . . . . Swarmer 15 | . 3 4 . 6 . 2 Grunt 18 | . 5 2 . 3 . 8 Brawler 1 | . . . . . . 1 Sentry 5 | . . 1 3 . . 1 Hunter 5 | . . . . 3 . 2 Programmer 4 | . . . . 2 . 2 Artisan 1 | . . 1 . . . . Subdweller 7 | . . 7 . . . . Scrapper 3 | . . . 3 . . . Best Kill Streak 7 | 7 3 4 2 5 . 4 Combat Bots Only 4 | . 3 4 2 3 . 2 Max Kills in Single Turn 3 | 1 2 2 1 3 . 2 Gunslinging 1 | . 1 . . . . . Exploded 3 | . . 2 . 3 . 2 Melee 1 | . 1 . . 1 . . Uniques/NPCs Destroyed . | . . . . . . . Combat | -11 -10 -10 -8 -6 -6 -6 -------- Run | Yrd Mat Sub Rec Fac Was Fac Hostile Shots Fired 606 | . 55 92 33 237 3 186 Missed 206 | . 10 24 7 80 . 85 Hits 400 | . 45 68 26 157 3 101 Melee 3 | . . . . . 3 . Projectile 397 | . 45 68 26 157 . 101 AOE 2 | . . . . . . 2 Critical Strikes 10 | . 1 2 1 1 2 3 Damage Taken 6537 | . 546 1262 506 2375 140 1708 Core 1084 | . 55 128 33 489 . 379 Absorbed by Shields . | . . . . . . . Regen/Repaired (Parts) 917 | . 137 . 20 322 . 438 Core Remaining (%) 56 | 100 . . 13 . . . Volleys Fired 405 | 10 55 81 41 87 . 131 Largest 2 | 2 2 2 2 2 . 2 Hottest 140 | 80 90 90 140 105 . 140 Shots Fired 561 | 20 108 131 58 94 . 150 Gun 329 | 20 108 127 17 53 . 4 Cannon 203 | . . . 41 26 . 136 Launcher 29 | . . 4 . 15 . 10 Special . | . . . . . . . Kinetic 200 | . . 79 . 58 . 63 Thermal 308 | 20 108 52 58 27 . 43 Explosive 11 | . . . . 1 . 10 Electromagnetic 42 | . . . . 8 . 34 Robot Hit Streak 24 | 10 10 24 13 11 . 16 Robot Miss Streak 6 | 1 4 5 3 4 . 6 Penetration Max . | . . . . . . . Secondary Targets 3 | . 3 . . . . . Max Gunslinging Chain 1 | . 1 . . . . . Shots Hit Robots 375 | 13 69 90 42 71 . 90 Core Hits 173 | 8 26 36 7 40 . 56 Critical Kills . | . . . . . . . Critical Parts Destroyed 1 | . . 1 . . . . Critical Strikes 7 | . 1 4 . 1 . 1 Burn 1 | . 1 . . . . . Destroy 4 | . . 4 . . . . Corrupt 1 | . . . . . . 1 Sever 1 | . . . . 1 . . Melee Attacks 31 | . 5 . . 26 . . Impact . | . . . . . . . Slashing 31 | . 5 . . 26 . . Piercing . | . . . . . . . Sneak Attacks 5 | . . . . 5 . . Combat Hostiles . | . . . . . . . Follow-up Attacks . | . . . . . . . Damage Inflicted 11141 | 138 873 2051 1084 3172 . 3823 Guns 3988 | 138 771 1733 260 999 . 87 Cannons 3608 | . . . 820 422 . 2366 Explosions 2745 | . . 318 . 1057 . 1370 Melee 780 | . 95 . . 685 . . Ramming 20 | . 7 . 4 9 . . Kinetic 4384 | . . 1315 . 1771 . 1298 Thermal 4225 | 138 771 736 1080 416 . 1084 Explosive 1024 | . . . . 190 . 834 Electromagnetic 708 | . . . . 101 . 607 Impact . | . . . . . . . Slashing 780 | . 95 . . 685 . . Piercing . | . . . . . . . Highest Corruption 16 | . . . . 4 9 16 Average Corruption 11 | . . . . 2 7 13 Corruption Purged . | . . . . . . . Corruption Blocked . | . . . . . . . Effects 55 | . . . . 4 3 48 Message Errors 11 | . . . . . 1 10 Matter Fused 20 | . . . . 3 1 16 Heat Flow Errors 5 | . . . . . . 5 Energy Discharges 3 | . . . . . 1 2 Parts Rejected 1 | . . . . . . 1 Data Loss (minor) 6 | . . . . . . 6 Data Loss (major) 3 | . . . . 1 . 2 Misfires 2 | . . . . . . 2 Misdirections 1 | . . . . . . 1 Weapon Failures 3 | . . . . . . 3 Overload Shots . | . . . . . . . Overflow Damage 126 | . . . 53 24 . 49 Projectiles 103 | . . . 53 18 . 32 Explosions 17 | . . . . . . 17 Melee 6 | . . . . 6 . . Knockbacks 17 | . . . . . . 17 Impact . | . . . . . . . Kinetic 17 | . . . . . . 17 Secondary . | . . . . . . . Self-Inflicted Damage 80 | . 2 . . 25 . 53 Shots 3 | . . . . 1 . 2 Rammed 2 | . 1 . . 1 . . Targets Rammed 4 | . 2 . 1 1 . . Kicked 2 | . 1 . 1 . . . Crushed . | . . . . . . . Highest Temperature 424 | 54 278 12 424 70 . 414 Average Temperature 110 | 25 87 6 147 27 . 123 Received Heat Transfer 1255 | . 234 273 262 177 . 309 Effects 5 | . . . 3 . . 2 Shutdowns 1 | . . . . . . 1 Energy Bleed 1 | . . . 1 . . . Interference 1 | . . . . . . 1 Matter Decay 1 | . . . 1 . . . Short Circuit 1 | . . . 1 . . . Siege Activations . | . . . . . . . Martial Activations . | . . . . . . . Shielding Activations . | . . . . . . . Robots Disrupted . | . . . . . . . Combat Hostiles . | . . . . . . . Robots Corrupted 3 | . . . . . . 3 Combat Hostiles 2 | . . . . . . 2 Parts Fried 4 | . . . . . . 4 Impact Corruptions . | . . . . . . . Robots Melted 2 | . 1 . 1 . . . Combat Hostiles 1 | . . . 1 . . . Parts Melted 17 | . 6 4 7 . . . Heat Transferred 5947 | 325 1882 900 1109 617 . 1114 Parts Sabotaged . | . . . . . . . Parts Stolen . | . . . . . . . Parts Stripped . | . . . . . . . Power Chain Reactions . | . . . . . . . Alert | -11 -10 -10 -8 -6 -6 -6 ------- Run | Yrd Mat Sub Rec Fac Was Fac Maximum Alert Level 2 | . . . . 2 . 1 Low Security (%) 61 | 100 100 . 100 . 100 16 Level 1 32 | . . . . 70 . 83 Level 2 5 | . . . . 29 . . Level 3 . | . . . . . . . Level 4 . | . . . . . . . Level 5 . | . . . . . . . High Security . | . . . . . . . Max Security . | . . . . . . . Peak Influence 575 | 15 60 . 81 575 128 398 Initial 421 | . 3 . 61 421 128 61 Average 139 | 4 10 . 26 364 114 255 Influence Increases 2762 | 35 350 215 281 1003 . 878 Destroy 0b10 Robot/C 980 | . 160 160 60 280 . 320 Destroy 0b10 Robot/NC 190 | 35 40 . 5 55 . 55 Destroy Leader 228 | . 50 10 . 82 . 86 Successful Hack 51 | . 39 . 12 . . . Select Force Hacks 240 | . 60 . 180 . . . Disable Machine 225 | . . . 15 45 . 165 Destroy Structure 178 | . 1 . 9 81 . 87 Advance Influence 400 | . . . . 400 . . Partial Spotted 30 | . . . . 15 . 15 Lose Combat Pursuer 240 | . . 45 . 45 . 150 Influence Decreases 2367 | 30 303 138 360 685 280 571 Entered New Map 392 | . 2 26 68 29 240 27 Time Decay 1635 | 30 291 112 292 416 20 474 Search Patrol Dispatched 150 | . . . . 150 . . Lost Part 170 | . 10 . . 90 . 70 Lost Ally 20 | . . . . . 20 . Squads Dispatched 15 | . 3 . . 6 . 6 Investigation 3 | . 2 . . 1 . . Extermination 3 | . . . . 1 . 2 Reinforcement 9 | . 1 . . 4 . 4 Assault . | . . . . . . . Garrison . | . . . . . . . Intercept . | . . . . . . . Searches Triggered 1 | . . . . 1 . . Construction Impeded 1 | . . . . . . 1 Haulers Reinforced 2 | . . . . . . 2 Active Scanning Responses . | . . . . . . . Cargo Convoy Interrupts . | . . . . . . . Stealth | -11 -10 -10 -8 -6 -6 -6 --------- Run | Yrd Mat Sub Rec Fac Was Fac Distress Signals 4 | . 1 . . 3 . . Communications Jammed . | . . . . . . . Distress Signals . | . . . . . . . Times Spotted 104 | . 17 21 4 27 6 29 Peak Tracking Total 7 | . 3 5 2 7 6 4 Tactical Retreats 13 | . . 2 . 2 . 9 Traps | -11 -10 -10 -8 -6 -6 -6 ------- Run | Yrd Mat Sub Rec Fac Was Fac Traps Triggered 3 | . 2 . . 1 . . Indirectly . | . . . . . . . Trap Hack Attempts . | . . . . . . . Triggered . | . . . . . . . Disarmed . | . . . . . . . Reprogrammed . | . . . . . . . Reused . | . . . . . . . Traps Extracted . | . . . . . . . Installed . | . . . . . . . Triggered . | . . . . . . . Machines | -11 -10 -10 -8 -6 -6 -6 ---------- Run | Yrd Mat Sub Rec Fac Was Fac Machines Disabled 20 | . . 5 1 3 . 11 Max in Single Turn 9 | . . 1 1 1 . 9 Machines Repaired . | . . . . . . . Machines Dismantled . | . . . . . . . Machines Sabotaged . | . . . . . . . Overloaded Fab Kills . | . . . . . . . Hacking | -11 -10 -10 -8 -6 -6 -6 --------- Run | Yrd Mat Sub Rec Fac Was Fac Machines Accessed 25 | . 6 2 12 4 . 1 Terminals 12 | . 3 . 5 3 . 1 Fabricators . | . . . . . . . Repair Stations 1 | . 1 . . . . . Recycling Units 8 | . 2 . 6 . . . Scanalyzers 1 | . . . . 1 . . Garrison Access . | . . . . . . . Total Hacks 73 | . 21 13 26 9 . 4 Successful 43 | . 12 13 18 . . . Failed 29 | . 8 . 8 9 . 4 Catastrophic 7 | . . . 3 3 . 1 Database Lockouts 1 | . 1 . . . . . Manual 48 | . 15 . 22 7 . 4 Terminals 45 | . 15 . 18 8 . 4 Fabricators . | . . . . . . . Repair Stations 3 | . 3 . . . . . Recycling Units 9 | . 3 . 6 . . . Scanalyzers 1 | . . . . 1 . . Garrison Access . | . . . . . . . Terminal Hacks 26 | . 5 13 8 . . . Record 13 | . . 12 1 . . . Part Schematic 3 | . . . 3 . . . Robot Schematic 1 | . 1 . . . . . Robot Analysis 3 | . 2 . 1 . . . Terminal Index 1 | . 1 . . . . . Repair Station Index 1 | . 1 . . . . . Zone Layout 1 | . . . 1 . . . Proto ID Catalog 1 | . . 1 . . . . Release Object 2 | . . . 2 . . . Fabricator Hacks . | . . . . . . . Repair Station Hacks 2 | . 2 . . . . . Scan Component 1 | . 1 . . . . . Repair 1 | . 1 . . . . . Recycling Unit Hacks . | . . . . . . . Scanalyzer . | . . . . . . . Garrison Access Hacks . | . . . . . . . Unauthorized Hacks 15 | . 5 . 10 . . . Terminals 7 | . 3 . 4 . . . Track 1 | . . . 1 . . . Assimilate 1 | . 1 . . . . . Botnet 5 | . 2 . 3 . . . Fabricators . | . . . . . . . Repair Stations . | . . . . . . . Recycling Units 8 | . 2 . 6 . . . Tunnel 8 | . 2 . 6 . . . Scanalyzers . | . . . . . . . Garrison Access . | . . . . . . . Data Cores Recovered 2 | . . . . 1 . 1 Used . | . . . . . . . Hacking Detections 14 | . 5 . 4 4 . 1 Full Trace Events 3 | . . . 2 1 . . Feedback Events . | . . . . . . . Feedback Blocked . | . . . . . . . Robot Schematics Acquired 1 | . 1 . . . . . Robots Built . | . . . . . . . Authchips . | . . . . . . . Time . | . . . . . . . Total Robot Build Rating . | . . . . . . . Part Schematics Acquired 3 | . . . 3 . . . Parts Built . | . . . . . . . Authchips . | . . . . . . . Time . | . . . . . . . Total Part Build Rating . | . . . . . . . Parts Repaired 1 | . 1 . . . . . Time 13 | . 13 . . . . . Parts Recycled . | . . . . . . . Recycled Matter . | . . . . . . . Retrieved Matter . | . . . . . . . Retrieved Components . | . . . . . . . Parts Scanalyzed . | . . . . . . . Part Schematics Acquired . | . . . . . . . Parts Damaged . | . . . . . . . Bothacking | -11 -10 -10 -8 -6 -6 -6 ------------ Run | Yrd Mat Sub Rec Fac Was Fac Used RIF Installer . | . . . . . . . Robots Hacked . | . . . . . . . Non-combat . | . . . . . . . Combat . | . . . . . . . Robot Hacks Applied . | . . . . . . . Relay Couplers Released 4 | . . . . 4 . . Programmers 4 | . . . . 4 . . Fabnet Peak Effective % . | . . . . . . . Robots Rewired . | . . . . . . . Allies Hacked . | . . . . . . . Hacks Repelled . | . . . . . . . Allies | -11 -10 -10 -8 -6 -6 -6 -------- Run | Yrd Mat Sub Rec Fac Was Fac Total Allies 1 | . . . . . 1 . Largest Group 1 | . . . . . 1 . Highest-Rated Group 31 | . . . . . 31 . Highest-Rated Ally 31 | . . . . . 31 . Total Orders . | . . . . . . . Ally Attacks 6 | . . . . . 6 . Total Damage 105 | . . . . . 105 . Kills . | . . . . . . . Allies Corrupted . | . . . . . . . Allies Melted . | . . . . . . . Intel | -11 -10 -10 -8 -6 -6 -6 ------- Run | Yrd Mat Sub Rec Fac Was Fac Active Infowar (turns) 2195 | 13 151 1489 141 401 . . Optics 561 | . . 420 141 . . . Sensors 401 | . . . . 401 . . Structural 5 | . . 5 . . . . Seismic 1228 | 13 151 1064 . . . . Robot Analysis Total 3 | . 2 . 1 . . . Derelict Logs Recovered . | . . . . . . . Drone Launches . | . . . . . . . Drone Recoveries . | . . . . . . . Exploration | -11 -10 -10 -8 -6 -6 -6 ------------- Run | Yrd Mat Sub Rec Fac Was Fac Turns Passed 10454 | 148 1333 5185 1519 1005 49 1215 Spaces Moved 5925 | 77 604 2760 775 759 79 871 Core 176 | 19 . . . 27 74 56 Treads 2326 | 58 246 1666 356 . . . Legs 910 | . 245 . 390 275 . . Wheels 1236 | . 113 1094 29 . . . Hover . | . . . . . . . Flight 1277 | . . . . 457 5 815 Fastest Speed 40 | 50 105 90 105 47 50 40 Average Speed 125 | 132 161 141 135 88 62 77 Slowest Speed 240 | 160 190 160 240 119 102 200 Overloaded Moves . | . . . . . . . Propulsion Burnouts . | . . . . . . . Robots Hopped 9 | . . . . 2 3 4 Potential Cave-ins . | . . . . . . . Cave-ins Triggered . | . . . . . . . Exploration Rate (%) 53 | 6 77 68 96 22 83 19 Regions Visited 6 Branch Regions 2 Pre-discovered Areas 9 | . 2 1 6 . . . Known Exits Taken . | . . . . . . . Unknown Exits Taken 4 | 1 1 1 1 . . . Scrap Searched 16 | . . 16 . . . . Spaces Dug 15 | . . . . 12 . 3 Terrain Destroyed 259 | . . 51 9 111 . 88 Melee 4 | . . . . 4 . . Projectile 32 | . . 1 9 4 . 18 AOE 223 | . . 50 . 103 . 70 Terrain Rammed . | . . . . . . . Walls Destroyed . | . . . . . . . Machines Disabled . | . . . . . . . Actions | -11 -10 -10 -8 -6 -6 -6 --------- Run | Yrd Mat Sub Rec Fac Was Fac Total 8350 | 102 833 3920 1198 958 75 1264 Wait 1696 | . 141 944 323 58 . 230 Move 5904 | 76 603 2759 774 756 73 863 Hop 7 | . . . . 1 2 4 Pick Up 102 | 9 11 52 23 4 . 3 Fast Attach 35 | 1 4 11 2 7 . 10 Attach 40 | 6 3 12 6 6 . 7 Detach 12 | . . . . 5 . 7 Swap 20 | . 9 10 1 . . . Drop 86 | . . 44 26 7 . 9 Fire 405 | 10 55 81 41 87 . 131 Melee 31 | . 5 . . 26 . . Ram 2 | . 1 . . 1 . . Kick 2 | . 1 . 1 . . . Crush . | . . . . . . . Escape Stasis . | . . . . . . . Rewire . | . . . . . . . Trap . | . . . . . . . Miscellaneous 8 | . . 7 1 . . . Route ------- -11/Scrapyard -10/Materials (discovered 6 exits: [*Mat x3] / [*Min x2] / *Sub) -10/Subcaves (discovered 2 exits: [*Mat] / *Rec) -8/Recycling -6/Factory (discovered 5 exits: *Fac x4 / Low) -6/Waste -6/Factory History --------- Turn | Location | Event 8 | -11/Scrapyard | Discovered new exit (range 14) 149 | -11/Scrapyard | Entered Materials 305 | -10/Materials | Build established: Mutant 307 | -10/Materials | Discovered new exit (range 6) 390 | -10/Materials | Discovered new exit (range 11) 732 | -10/Materials | Discovered new exit (range 3) 778 | -10/Materials | Discovered new exit (range 16) 822 | -10/Materials | Discovered new exit (range 7) 966 | -10/Materials | Repaired Lgt. Treads 1032 | -10/Materials | Discovered new exit (range 5) 1198 | -10/Materials | Central database locked down 1482 | -10/Materials | Entered Subcaves 1567 | -10/Subcaves | Visited 4L-MR0's lab 1853 | -10/Subcaves | Discovered new exit (range 9) 2152 | -10/Subcaves | A swath of the cavern ceiling suddenly collapsed 2168 | -10/Subcaves | Core integrity fell below 50% 2273 | -10/Subcaves | Disturbed a concealed Subdweller 2495 | -10/Subcaves | Build established: Subdweller-Mutant 2815 | -10/Subcaves | A swath of the cavern ceiling suddenly collapsed 2903 | -10/Subcaves | Ambushed by Subdwellers from Twisted Machinery 2959 | -10/Subcaves | Lost 3 parts (1n1u1w) 3214 | -10/Subcaves | Build established: Scavenger-Mutant 3565 | -10/Subcaves | Build established: Subdweller-Mutant 4316 | -10/Subcaves | Visited Clippyterm 4320 | -10/Subcaves | Learned location of Extension (-4) 4320 | -10/Subcaves | Learned 40 Factory zone layouts 4554 | -10/Subcaves | Discovered new exit (range 15) 4780 | -10/Subcaves | Shifting Twisted Machinery released Mak. System Shield 5674 | -10/Subcaves | Build established: Mutant 5682 | -10/Subcaves | Found Gun Armor 6667 | -10/Subcaves | Entered Recycling 7000 | -8/Recycling | Scanned before Scraplab entrance 7023 | -8/Recycling | Entered Scraplab 7035 | -8/Recycling | Discovered new exit (range 3) 7224 | -8/Recycling | Angered Scraplab inhabitants 7351 | -8/Recycling | Core integrity fell below 20% 7387 | -8/Recycling | Found Prototype Device 7387 | -8/Recycling | Identified Scrap Engine 7843 | -8/Recycling | Build established: Construct 7986 | -8/Recycling | Discovered new exit (range 15) 8186 | -8/Recycling | Entered Factory 8186 | -6/Factory | Evolved 8 slots: Propulsion x5, Utility x2, Weapon x1 8187 | -6/Factory | Identified exit to Factory 8187 | -6/Factory | Identified exit to Lower Caves 8416 | -6/Factory | Lost 4 parts (1p3w) 8490 | -6/Factory | Build established: Mutant 8536 | -6/Factory | Search patrols dispatched 8764 | -6/Factory | Attached Gun Armor, gained temporary slots: Weapon x2 9093 | -6/Factory | Lost 3 parts (1n1u1w) 9130 | -6/Factory | Core integrity fell below 50% 9177 | -6/Factory | Discovered exit to Factory (range 15) 9191 | -6/Factory | Manually triggered Chute Trap 9191 | -6/Factory | Sucked down chute 9191 | -6/Factory | Entered Waste 9192 | -6/Waste | Met a frightened Derelict 9205 | -6/Waste | Spotted C-40 Crusher 9206 | -6/Waste | EMP discharged 9208 | -6/Waste | Spotted C-40 Crusher 9209 | -6/Waste | Spotted C-40 Crusher 9218 | -6/Waste | Spotted C-40 Crusher 9218 | -6/Waste | Spotted C-40 Crusher 9221 | -6/Waste | Spotted C-40 Crusher 9231 | -6/Waste | Discovered new exit (range 10) 9240 | -6/Waste | Entered Factory 9366 | -6/Factory | System corruption reached 10% 9420 | -6/Factory | Spotted B-75 Beast 9665 | -6/Factory | Core integrity fell below 20% 9703 | -6/Factory | Lost 3 parts (1p2u) 10076 | -6/Factory | Build established: Construct 10455 | -6/Factory | Destroyed by P-70 Sage with Tesla Rifle Last Messages --------------- 10369_ Arm. Scrap Engine consumes Corrupted Cmb. Airjet. 10373_ System corrupted: Component data lost. 10383_ Y-54 Guardian misfires. 10383_ K-01 Serf destroyed. 10388_ System corrupted: Component data lost. 10409_ Y-54 Guardian IFF system glitched. 10409_ T-07 Excavator destroyed. 10416_ System corrupted: Component data lost. 10432_ Y-54 Guardian misfires. 10433_ System corrupted: Matter fused (-6). 10434_ FC-Compact Exoskeleton destroyed. 10434_ FC-Compact Exoskeleton core remains intact and functional. 10438_ Y-54 Guardian system terminally corrupted. 10438_ Imp. Heat Sink fried. 10452_ Scrap Engine modifies FC-Compact Exoskeleton: Max Integrity -15. Map ----- +----------------------------------------------------+ | ????????# #????????????????????#"""" | | ????#####+########?????????????#"""" | | ????# #??????????????"""" | | ????# #?????????????? | | ????# #???????????????#### | | ????# [[[ #??????????????????? | | ????# [[[ """"" #??????????????????? | | ????# [[ """"" #??????????????????? | | ????# """ #??????????????????? | | ????# #??????????????????? | | ????# ! """"" #??????????????????? | | ????# """"" #??????????????????? | | ????# """ #??????????????????? | | ????# ##?????##/###??????? | | ????######## ##### ??????? | | ????????# #?????? | | ????????# [ #?????? | | ????????# %= +?????? | | ????????# * #?????? | | ????????# p =% #?????? | | ????????# ######## = ??????? | | ????????# ##########%| ##??????? | | ????????# # #?? ????????? | | ????????+ + #???????????? | | ????????# # #???????????? | | ????????# @ # #???????????? | | ????????# #? #???????????? | | ????????# #? #???????????? | | ????????# #?? #???????????? | | ????????# #??########???????????? | | ????????# #?????????????????????? | | ????????# #?????????????????????? | | ????????# #?????????????????????? | | ????????# #?????????????????????? | | ????????# #?????????????????????? | | ????????# #?????????????????????? | | ????????# #?????????????????????? | | ????????# #?????????????????????? | | ????????# ??????????????????????? | | ????????# ??????????????????????? | | ?????????? ??????????????????????? | | ????????????????????????????????????? | | ????????????????????????????????????? | | ????????????????????????????????????? | | ????????????????????????????????????? | | ????????????????????????????????????? | | ????????????????????????????????????? | | ????????????????????????????????????? | | ????????????????????????????????????? | | ????????????????????????????????????? | +----------------------------------------------------+ Best States ------------- Heat Dissipation 56 Coolant Potential 65 Energy Generation 18 Energy Capacity 310 Matter Stores 300 Matter Capacity 300 Sight Range 21 Robot Scan Range 16 Terrain Scan Density 10 Armor Coverage 800 Evasion (%) 62 Recoil Reduction 2 Offensive Hacking 10 Defensive Hacking 11 Item Schematics ----------------- Huge Storage Unit | -8/Recycling | Hacked Targeting Computer | -8/Recycling | Hacked Flight Unit | -8/Recycling | Hacked Robot Schematics ------------------ M-13 Machinist | -10/Materials | Hacked Fabricated ------------ Nothing Repaired ---------- Lgt. Treads | 2% | -10/Materials Alien Tech Used ----------------- None Achievements -------------- None Challenges ------------ None Game ------ Seed NavigationChainReactor Manual? 0 Play Time 01:06:19 Cumulative 993.7 hours Start 2025.06.04 @ 16:01:18 End 2025.06.04 @ 17:03:33 Sessions 1 Manual Loads 0 Difficulty Rogue Special Mode None Game No. 596 Rogue 589 Adventurer 0 Explorer 7 Win Type - Total 66 Types 23/6/25/2/0/1/6/1/2/0 Lore% 92 Gallery% 92 Achievement% 85 Wizard Run 0 Options --------- Layout 1 ASCII 0 Keyboard 0 Movement Numpad Keybinds 0 Fullscreen 2 Font 24/Smallcaps Map View 50x35 Zoom Use 0% Tactical HUD 1 Map Filters NONE Filters NONE Steam 1 RUN: dffd783a-2314-4c71-8f54-54d8d5f683eb